fUSD/lending_fUSD_20250930
["ID","MTS","AMOUNT","RATE_DAILY","PERIOD"]
[388487774,1759204730694,-167.702183,0.00017519,2]
[388487775,1759204730716,-151.0,0.00017519,2]
[388487776,1759204730738,-710.538854,0.00017519,2]
[388487777,1759204730760,-710.538854,0.00017519,2]
[388487778,1759204730782,-710.538854,0.00017519,2]
[388487779,1759204730804,-710.538854,0.00017519,2]
[388487780,1759204730828,-151.0,0.00017519,2]
[388487781,1759204730850,-151.0,0.00017519,2]
[388487782,1759204730874,-206.188668,0.00017519,2]
[388487783,1759204730896,-206.188668,0.00017519,2]
[388487784,1759204730920,-206.188668,0.00017519,2]
[388487785,1759204730943,-206.188668,0.00017519,2]
[388487786,1759204730966,-352.01352907,0.00017556,2]
[388487787,1759204730988,-151.0,0.00017589,2]
[388487788,1759204731010,-157.167965,0.00017589,2]
[388487789,1759204731035,-377.433666,0.00017589,2]
[388487790,1759204731058,-377.433666,0.00017589,2]
[388487791,1759204731081,-377.433666,0.00017589,2]
[388487792,1759204731105,-377.433666,0.00017589,2]
[388487793,1759204731128,-151.0,0.00017589,2]
[388487794,1759204731151,-710.538854,0.00017589,2]
[388487795,1759204731175,-710.538854,0.00017589,2]
[388487796,1759204731198,-710.538854,0.00017589,2]
[388487797,1759204731222,-710.538854,0.00017589,2]
[388487798,1759204731246,-2137.63120576,0.00017589,2]
[388487799,1759204731269,-150.0,0.00017618,2]
[388487800,1759204731291,-150.0,0.00017618,2]
[388487801,1759204731313,-150.0,0.00017618,2]
[388487802,1759204731336,-150.0,0.00017618,2]
[388487803,1759204731358,-150.0,0.00017618,2]
[388487804,1759204731380,-150.0,0.00017618,2]
[388487805,1759204731404,-265.12431831,0.00017625,2]
[388487806,1759204731427,-782.89263226,0.00017625,2]
[388487807,1759204731450,-184.50827962,0.00017626,2]
[388487808,1759204731473,-15466.46379696,0.00017626,2]
[388487809,1759204731495,-5000.0,0.00017627,2]
[388487810,1759204731518,-2137.63120576,0.00017644,2]
[388487811,1759204731540,-248.93641557,0.00017659,2]
[388487812,1759204731564,-168.0,0.0001766,2]
[388487813,1759204731587,-151.0,0.00017677,2]
[388487814,1759204731609,-151.0,0.00017677,2]
[388487815,1759204731632,-242.775596,0.00017677,2]
[388487816,1759204731654,-360.161164,0.00017677,2]
[388487817,1759204731676,-360.161164,0.00017677,2]
[388487818,1759204731698,-360.161164,0.00017677,2]
[388487819,1759204731721,-360.161164,0.00017677,2]
[388487820,1759204731745,-248.638961,0.00017677,2]
[388487821,1759204731766,-248.638961,0.00017677,2]
[388487822,1759204731788,-248.638961,0.00017677,2]
[388487823,1759204731810,-248.638961,0.00017677,2]
[388487824,1759204731833,-262.070518,0.00017677,2]
[388487825,1759204731856,-151.0,0.00017677,2]
[388487826,1759204732256,-154.928648,0.00017677,2]
[388487827,1759204732280,-151.0,0.00017677,2]
[388487828,1759204732302,-151.0,0.00017677,2]
[388487829,1759204732324,-377.433666,0.00017677,2]
[388487830,1759204732347,-377.433666,0.00017677,2]
[388487831,1759204732369,-377.433666,0.00017677,2]
[388487832,1759204732391,-377.43367,0.00017677,2]
[388487833,1759204732414,-151.0,0.00017677,2]
[388487834,1759204732437,-710.538854,0.00017677,2]
[388487835,1759204732460,-710.538854,0.00017677,2]
[388487836,1759204732483,-710.538854,0.00017677,2]
[388487837,1759204732506,-710.538854,0.00017677,2]
[388487838,1759204732529,-151.0,0.00017677,2]
[388487839,1759204732552,-151.0,0.00017677,2]
[388487840,1759204732575,-206.188668,0.00017677,2]
[388487841,1759204732598,-206.188668,0.00017677,2]
[388487842,1759204732621,-206.188668,0.00017677,2]
[388487843,1759204732645,-206.188668,0.00017677,2]
[388487844,1759204732667,-1163.4238038,0.00017677,2]
[388487845,1759204732691,-18431.1509,0.00017681,2]
[388487846,1759204732714,-151.0,0.00017681,2]
[388487847,1759204732740,-150.0,0.00017697,2]
[388487848,1759204732766,-414588.03161042,0.0001771,2]
[388487851,1759204737234,500.0,0.00016483,7]
[388487915,1759204878437,666.0,0.00016451,3]
[388488023,1759205162527,150.0,0.000166,2]
[388488111,1759205370981,1000.0,0.0001659,2]
[388488114,1759205402174,576.02,0.00016592,2]
[388488124,1759205431619,-200.0,0.00016604,2]
[388488126,1759205431630,-176.96547128,0.00016605,2]
[388488128,1759205431640,-415.11251219,0.00016605,2]
[388488129,1759205431655,-730.90981195,0.00016652,2]
[388488130,1759205431667,-731.51737578,0.00016652,2]
[388488131,1759205431678,-627.62514,0.00016652,2]
[388488132,1759205431691,-409.94767227,0.00016652,2]
[388488133,1759205431700,-300.0,0.00016684,2]
[388488134,1759205431710,-256.87114857,0.00016685,2]
[388488135,1759205431724,-2243.12885143,0.00016685,2]
[388488136,1759205431733,-2500.0,0.00016685,2]
[388488137,1759205431743,-496.91142371,0.00016685,2]
[388488138,1759205431754,-358.4518128,0.00016685,2]
[388488139,1759205431766,-419.77885998,0.00016685,2]
[388488140,1759205431787,-1270.14450241,0.00016685,2]
[388488141,1759205431797,-203.58,0.000167,2]
[388488142,1759205431806,-280.19828886,0.00016703,2]
[388488160,1759205434767,-1719.80171114,0.00016703,2]
[388488161,1759205434776,-300.0,0.00016706,2]
[388488162,1759205434786,-171.27,0.00016711,2]
[388488163,1759205434799,-368.11225776,0.00016819,2]
[388488164,1759205434809,-172.39,0.00016945,2]
[388488165,1759205434818,-1415.57600963,0.00016988,2]
[388488166,1759205434829,-4195.78399037,0.00016988,2]
[388488167,1759205434838,-520.0,0.00016988,2]
[388488168,1759205434847,-1578.2,0.00016989,2]
[388488169,1759205434856,-150.0,0.00016989,2]
[388488170,1759205434866,-150.0,0.00016989,2]
[388488171,1759205434876,-150.0,0.00016989,2]
[388488172,1759205434885,-150.0,0.00016989,2]
[388488173,1759205434895,-150.0,0.00016989,2]
[388488174,1759205434904,-150.0,0.00016989,2]
[388488175,1759205434913,-151.53497393,0.00016989,2]
[388488176,1759205434923,-150.0,0.00016989,2]
[388488177,1759205434933,-150.0,0.00016989,2]
[388488178,1759205434942,-150.0,0.00016989,2]
[388488179,1759205434952,-150.0,0.00016989,2]
[388488180,1759205434961,-263.79387024,0.00017037,2]
[388488181,1759205434971,-150.0,0.00017225,2]
[388488182,1759205434980,-1578.2,0.00017263,2]
[388488183,1759205434990,-1000.0,0.000173,2]
[388488184,1759205435000,-150.0,0.00017304,2]
[388488185,1759205435009,-409.19258549,0.00017318,2]
[388488186,1759205435018,-151.0,0.00017324,2]
[388488187,1759205435028,-239.84119403,0.00017324,2]
[388488188,1759205435037,-300.0,0.0001736,2]
[388488189,1759205435047,-150.0,0.00017461,2]
[388488190,1759205435056,-1578.2,0.00017537,2]
[388488191,1759205435066,-180.0,0.00017547,2]
[388488192,1759205435076,-171.27,0.00017547,2]
[388488193,1759205435086,-298.83664445,0.00017569,2]
[388488194,1759205435095,-500.0,0.00017569,2]
[388488195,1759205435105,-500.0,0.00017569,2]
[388488196,1759205435116,-500.0,0.00017569,2]
[388488197,1759205435126,-500.0,0.00017569,2]
[388488198,1759205435136,-500.0,0.00017569,2]
[388488199,1759205435146,-500.0,0.00017569,2]
[388488200,1759205435156,-500.0,0.00017569,2]
[388488201,1759205435166,-500.0,0.00017569,2]
[388488202,1759205435176,-500.0,0.00017569,2]
[388488203,1759205435186,-500.0,0.00017569,2]
[388488204,1759205435196,-500.0,0.00017569,2]
[388488205,1759205435208,-500.0,0.00017569,2]
[388488206,1759205435218,-500.0,0.00017569,2]
[388488207,1759205435227,-500.0,0.00017569,2]
[388488208,1759205435237,-614.61343787,0.00017569,2]
[388488209,1759205435247,-500.0,0.00017569,2]
[388488210,1759205435256,-500.0,0.00017569,2]
[388488211,1759205435266,-500.0,0.00017569,2]
[388488212,1759205435276,-500.0,0.00017569,2]
[388488213,1759205435287,-2657.28951126,0.0001757,2]
[388488214,1759205435297,-151.0,0.0001757,2]
[388488215,1759205435307,-151.0,0.0001757,2]
[388488216,1759205435316,-200.0,0.0001757,2]
[388488217,1759205435326,-151.0,0.0001757,2]
[388488218,1759205435335,-151.0,0.0001757,2]
[388488219,1759205435345,-160.0,0.0001757,2]
[388488220,1759205435355,-151.0,0.0001757,2]
[388488221,1759205435365,-151.0,0.0001757,2]
[388488222,1759205435375,-151.0,0.0001757,2]
[388488223,1759205435385,-322.6107,0.0001757,2]
[388488224,1759205435395,-151.0,0.0001757,2]
[388488225,1759205435405,-151.0,0.0001757,2]
[388488226,1759205435415,-151.0,0.0001757,2]
[388488227,1759205435425,-151.0,0.0001757,2]
[388488228,1759205435436,-151.0,0.0001757,2]
[388488229,1759205435446,-151.0,0.0001757,2]
[388488230,1759205435456,-151.0,0.0001757,2]
[388488231,1759205435467,-151.0,0.0001757,2]
[388488232,1759205435477,-151.0,0.0001757,2]
[388488233,1759205435487,-261.90539267,0.0001757,2]
[388488234,1759205435497,-151.0,0.00017578,2]
[388488235,1759205435508,-153.4201048,0.00017578,2]
[388488236,1759205435518,-1940.19025076,0.0001758,2]
[388488237,1759205435528,-822.367,0.0001758,2]
[388488238,1759205435538,-166.237,0.0001758,2]
[388488239,1759205435548,-21466.95572547,0.00017581,2]
[388488240,1759205435562,-392.48502976,0.00017581,2]
[388488241,1759205435574,-89685.35494477,0.00017581,2]
[388488242,1759205435583,-700.0,0.00017595,2]
[388488243,1759205435594,-150.0,0.00017618,2]
[388488244,1759205435603,-150.0,0.00017618,2]
[388488245,1759205435613,-5000.0,0.00017625,2]
[388488246,1759205435623,-206.45809838,0.00017642,2]
[388488247,1759205435633,-500.0,0.00017642,2]
[388488248,1759205435647,-500.0,0.00017642,2]
[388488249,1759205435657,-438.07945115,0.00017642,2]
[388488250,1759205435667,-150.0,0.00017697,2]
[388488251,1759205435677,-202.03928001,0.00017699,2]
[388488252,1759205435686,-1270.0,0.00017699,2]
[388488253,1759205435696,-500.0,0.00017699,2]
[388488254,1759205435706,-150.0,0.00017699,2]
[388488255,1759205435717,-500.0,0.00017699,2]
[388488256,1759205435727,-218.29563453,0.00017699,2]
[388488257,1759205435738,-150.0,0.00017699,2]
[388488258,1759205435748,-500.0,0.00017699,2]
[388488259,1759205435758,-150.0,0.00017699,2]
[388488260,1759205435769,-255.58785134,0.00017699,2]
[388488261,1759205435778,-156.09,0.000177,2]
[388488262,1759205435788,-930.7053819,0.00017704,2]
[388488263,1759205435797,-1099.4068341,0.00017704,2]
[388488264,1759205435806,-571.25615103,0.00017705,2]
[388488265,1759205435816,-11101.19026732,0.0001771,2]
[388488266,1759205435825,-151.0,0.0001771,2]
[388488267,1759205435835,-422.0,0.0001771,2]
[388488268,1759205435844,-305.0694,0.0001771,2]
[388488269,1759205435853,-281.3073643,0.0001771,2]
[388488270,1759205435864,-168.0,0.00017723,2]
[388488271,1759205435873,-1196.51814569,0.00017724,5]
[388488272,1759205435883,-151.0,0.00017725,2]
[388488273,1759205435892,-500.0,0.00017753,2]
[388488274,1759205435901,-168.0,0.00017759,2]
[388488275,1759205435911,-150.0,0.0001778,2]
[388488276,1759205435921,-2862.637,0.00017795,2]
[388488277,1759205435931,-205.438,0.00017795,2]
[388488278,1759205435940,-719.83938295,0.00017795,2]
[388488288,1759205437591,-250.61225252,0.00017429,2]
[388488290,1759205437601,-248.37773417,0.000176,2]
[388488292,1759205437651,-143.62226583,0.000176,2]
[388488294,1759205437661,-228.26474652,0.00017794,2]
[388488295,1759205437671,-500.0,0.00017794,2]
[388488297,1759205437682,-276.06824217,0.00017794,2]
[388488298,1759205437693,-214.39616656,0.00017794,2]
[388488299,1759205437703,-1305.80697164,0.00017795,2]
[388488300,1759205437731,-1149.00291247,0.00017795,2]
[388488303,1759205439883,-250.61225252,0.00017452,2]
[388488304,1759205439893,-665.80538728,0.00017795,2]
[388488305,1759205439908,-4377.09085815,0.00017795,2]
[388488306,1759205439924,-4290.0,0.00017795,2]
[388488317,1759205442868,-0.02581679,0.00017795,2]
[388488318,1759205442882,-800.96955902,0.00017795,2]
[388488319,1759205442894,-1373.39238721,0.00017795,2]
[388488320,1759205442982,-4237.06672449,0.00017795,2]
[388488321,1759205442991,-790.11340851,0.00017795,2]
[388488322,1759205443003,-401.07704879,0.00017795,2]
[388488323,1759205443117,-3054.8095427,0.00017795,2]
[388488324,1759205443127,-167.7,0.000178,2]
[388488325,1759205443136,-646.0,0.00017804,2]
[388488326,1759205443145,-1578.2,0.00017811,2]
[388488327,1759205443154,-168.0,0.00017817,2]
[388488328,1759205443163,-646.0,0.00017822,2]
[388488330,1759205443173,-2500.0,0.00017845,2]
[388488332,1759205443183,-168.0,0.00017864,2]
[388488334,1759205443192,-13182.70296763,0.0001789,2]
[388488335,1759205443200,-168.0,0.00017897,2]
[388488336,1759205443209,-474.52590314,0.00017907,2]
[388488337,1759205443218,-500.0,0.00017911,2]
[388488339,1759205443227,-168.0,0.0001793,2]
[388488341,1759205443236,-150.0,0.00017933,2]
[388488342,1759205443245,-150.0,0.00017933,2]
[388488343,1759205443255,-150.0,0.00017933,2]
[388488344,1759205443263,-150.0,0.00017933,2]
[388488345,1759205443272,-170.05,0.00017936,2]
[388488347,1759205443281,-305.0694,0.0001794,2]
[388488349,1759205443290,-11101.19026717,0.00017955,2]
[388488350,1759205443299,-500.0,0.0001797,2]
[388488351,1759205443308,-500.0,0.0001797,2]
[388488352,1759205443317,-1270.0,0.00017973,2]
[388488353,1759205443326,-500.0,0.00017973,2]
[388488354,1759205443335,-185.80499981,0.00017973,2]
[388488356,1759205443344,-500.0,0.00017973,2]
[388488358,1759205443354,-150.0,0.00017973,2]
[388488360,1759205443363,-500.0,0.00017973,2]
[388488362,1759205443372,-150.623,0.00017979,2]
[388488364,1759205443381,-422.0,0.00017984,2]
[388488366,1759205443390,-372.6,0.00017996,2]
[388488368,1759205443400,-2683.4745908,0.00018,2]
[388488370,1759205443409,-1935.505601,0.00018,2]
[388488372,1759205443418,-162.0,0.00018,2]
[388488373,1759205443428,-311.85666825,0.00018,2]
[388488374,1759205443437,-3409.534,0.00018003,2]
[388488375,1759205443447,-789.905,0.00018003,2]
[388488376,1759205443456,-2050.785,0.00018003,2]
[388488377,1759205443465,-1266.564,0.00018003,2]
[388488378,1759205443475,-607.73,0.00018003,2]
[388488379,1759205443484,-1315.299,0.00018003,2]
[388488380,1759205443493,-1595.822,0.00018003,2]
[388488381,1759205443503,-571.614,0.00018003,2]
[388488382,1759205443512,-820.0,0.00018003,2]
[388488383,1759205443521,-151.0,0.00018003,2]
[388488384,1759205443530,-151.0,0.00018003,2]
[388488385,1759205443539,-151.0,0.00018003,2]
[388488386,1759205443548,-239.55585,0.00018003,2]
[388488387,1759205443558,-151.0,0.00018003,2]
[388488388,1759205443567,-151.0,0.00018003,2]
[388488389,1759205443576,-151.0,0.00018003,2]
[388488390,1759205443585,-151.0,0.00018003,2]
[388488391,1759205443594,-151.0,0.00018003,2]
[388488392,1759205443603,-151.0,0.00018003,2]
[388488393,1759205443613,-151.0,0.00018003,2]
[388488394,1759205443622,-151.0,0.00018003,2]
[388488395,1759205443631,-151.0,0.00018003,2]
[388488396,1759205443641,-168.0,0.00018039,2]
[388488397,1759205443654,-1578.2,0.00018085,2]
[388488398,1759205443663,-168.0,0.00018133,2]
[388488399,1759205443672,-150.0,0.00018169,2]
[388488400,1759205443682,-1002.06234326,0.0001819,2]
[388488401,1759205443691,-1000.0,0.0001819,2]
[388488402,1759205443700,-168.0,0.000182,2]
[388488403,1759205443709,-236.0,0.00018228,2]
[388488404,1759205443721,-151.0,0.00018247,2]
[388488405,1759205443730,-151.0,0.00018247,2]
[388488406,1759205443740,-1270.0,0.00018247,2]
[388488407,1759205443750,-500.0,0.00018247,2]
[388488408,1759205443759,-500.0,0.00018247,2]
[388488409,1759205443769,-150.0,0.00018247,2]
[388488410,1759205443779,-502.5324239,0.00018247,2]
[388488411,1759205443788,-150.0,0.00018247,2]
[388488412,1759205443797,-150.0,0.00018247,2]
[388488413,1759205443806,-168.0,0.00018249,2]
[388488414,1759205443816,-422.0,0.00018258,2]
[388488415,1759205443826,-350.83123955,0.00018266,2]
[388488416,1759205443838,-300.0,0.00018266,2]
[388488417,1759205443848,-250.0,0.00018266,2]
[388488418,1759205443858,-195.0,0.00018266,2]
[388488419,1759205443868,-2500.0,0.00018266,2]
[388488420,1759205443878,-313.83740342,0.00018266,2]
[388488421,1759205443888,-789.78989267,0.00018266,2]
[388488422,1759205443899,-152.0,0.00018291,3]
[388488423,1759205443909,-3195.05,0.000183,2]
[388488424,1759205443919,-11101.19026717,0.000183,2]
[388488425,1759205443929,-151.0,0.000183,2]
[388488426,1759205443939,-151.0,0.000183,2]
[388488427,1759205443948,-151.0,0.000183,2]
[388488428,1759205443958,-151.0,0.000183,2]
[388488429,1759205443967,-151.0,0.000183,2]
[388488430,1759205443976,-151.765106,0.000183,2]
[388488431,1759205443985,-1000.0,0.00018301,2]
[388488432,1759205443994,-168.0,0.00018313,2]
[388488433,1759205444004,-168.0,0.00018339,2]
[388488434,1759205444013,-266.46967819,0.00018356,2]
[388488435,1759205444023,-4160.84,0.00018356,2]
[388488436,1759205444032,-1578.2,0.00018359,2]
[388488437,1759205444041,-300.0,0.0001837,2]
[388488438,1759205444050,-250.0,0.0001837,2]
[388488439,1759205444059,-195.0,0.0001837,2]
[388488440,1759205444068,-2000.0,0.0001837,2]
[388488441,1759205444077,-171.27,0.00018382,2]
[388488442,1759205444087,-274.22021829,0.0001839,2]
[388488443,1759205444096,-151.0,0.0001839,2]
[388488444,1759205444106,-151.0,0.0001839,2]
[388488445,1759205444115,-151.0,0.0001839,2]
[388488446,1759205444124,-152.984743,0.0001839,2]
[388488447,1759205444133,-151.0,0.0001839,2]
[388488448,1759205444142,-264.837623,0.0001839,2]
[388488449,1759205444152,-151.0,0.0001839,2]
[388488450,1759205444161,-152.324829,0.0001839,2]
[388488451,1759205444170,-151.0,0.0001839,2]
[388488452,1759205444180,-151.0,0.0001839,2]
[388488453,1759205444189,-151.0,0.0001839,2]
[388488454,1759205444198,-151.0,0.0001839,2]
[388488455,1759205444207,-278.77721753,0.000184,2]
[388488456,1759205444216,-15913.68414704,0.000184,2]
[388488457,1759205444226,-500.0,0.000184,6]
[388488458,1759205444235,-150.0,0.00018405,2]
[388488459,1759205444244,-159.78305774,0.00018431,2]
[388488460,1759205444253,-305.06941,0.0001844,2]
[388488461,1759205444263,-15913.68414699,0.00018456,2]
[388488462,1759205444273,-306.63195673,0.00018459,2]
[388488463,1759205444282,-168.0,0.00018473,2]
[388488464,1759205444291,-18697.56718,0.0001849,3]
[388488468,1759205445675,-317.8499993,0.00017795,2]
[388488469,1759205445696,-598.8300007,0.00017795,2]
[388488470,1759205445707,-1517.9819571,0.0001849,3]
[388488471,1759205445865,-1347.87961427,0.0001849,3]
[388488472,1759205445888,-4266.75,0.0001849,3]
[388488473,1759205445901,-6193.99620509,0.0001849,3]
[388488474,1759205445911,-474.52590314,0.0001849,3]
[388488475,1759205445921,-151.0,0.0001849,2]
[388488476,1759205445931,-151.0,0.0001849,2]
[388488477,1759205445941,-151.0,0.0001849,2]
[388488478,1759205445953,-151.0,0.0001849,2]
[388488479,1759205445963,-400.0,0.00018499,5]
[388488480,1759205445973,-300.0,0.00018499,2]
[388488481,1759205445984,-22028.53289177,0.000185,2]
[388488482,1759205446001,-1143.97892178,0.000185,2]
[388488483,1759205446013,-1001.20674812,0.000185,2]
[388488486,1759205507705,-266.2318804,0.00016904,2]
[388488487,1759205510947,-151.44,0.00016904,2]
[388488489,1759205514947,-196.91,0.00016904,2]
[388488491,1759205517786,-157.97,0.00016904,2]
[388488492,1759205520296,-348.18067101,0.00016904,2]
[388488498,1759205534602,157.95,8.32e-05,2]
[388488499,1759205534898,157.95,0.00012479,2]
[388488501,1759205535777,-157.95,0.00016639,2]
[388488504,1759205632870,1786.89568257,0.00016,3]
[388488672,1759206214879,150.0,0.000165,2]
[388488675,1759206277200,800.0,0.000256,120]
[388488790,1759206632238,-168.0,0.00016709,2]
[388488793,1759206632249,-165.161428,0.00016797,2]
[388488797,1759206632264,-400.148572,0.00016797,2]
[388488800,1759206632273,-2500.0,0.00016799,2]
[388488802,1759206632283,-150.0,0.000168,2]
[388488804,1759206632292,-192.74,0.00016806,2]
[388488806,1759206632302,-1000.0,0.00016814,2]
[388488808,1759206632311,-1200.0,0.00016834,2]
[388488810,1759206632321,-2500.0,0.00016835,2]
[388488812,1759206632330,-404.40830224,0.00016835,2]
[388488814,1759206632339,-168.0,0.00016842,2]
[388488816,1759206632349,-633.26926002,0.00016881,2]
[388488818,1759206632360,-250.0,0.00016881,2]
[388488820,1759206632370,-482.49085291,0.00016904,2]
[388488822,1759206632379,-8260.13072239,0.00016966,2]
[388488825,1759206632389,-239.84119403,0.00016966,2]
[388488827,1759206632398,-666.0,0.00016977,3]
[388488829,1759206632408,-1603.22340432,0.00016986,2]
[388488831,1759206632417,-162.38,0.00016987,2]
[388488833,1759206632426,-150.0,0.00016989,2]
[388488835,1759206632439,-150.0,0.00016989,2]
[388488837,1759206632450,-150.0,0.00016989,2]
[388488839,1759206632460,-191.19252055,0.00016989,2]
[388488841,1759206632470,-200.0,0.00016989,2]
[388488843,1759206632480,-152.44145699,0.00016989,2]
[388488844,1759206632489,-150.0,0.00016989,2]
[388488846,1759206632499,-150.0,0.00016989,2]
[388488848,1759206632509,-154.21320852,0.00016989,2]
[388488850,1759206632519,-152.59262654,0.00016989,2]
[388488852,1759206632528,-2817.91995723,0.00017021,2]
[388488853,1759206632538,-1603.22340432,0.00017041,2]
[388488854,1759206632548,-150.0,0.00017057,7]
[388488855,1759206632558,-217.68,0.00017091,2]
[388488856,1759206632567,-1603.22340432,0.00017123,2]
[388488857,1759206632576,-167.04,0.00017124,2]
[388488858,1759206632586,-1500.0,0.00017133,2]
[388488859,1759206632595,-610.0,0.00017133,2]
[388488860,1759206632604,-317.51,0.00017133,2]
[388488861,1759206632613,-180.78,0.00017133,2]
[388488862,1759206632626,-318.49,0.00017133,2]
[388488864,1759206632637,-1603.22340432,0.00017178,2]
[388488867,1759206632646,-168.0,0.00017186,2]
[388488869,1759206632655,-168.0,0.00017226,2]
[388488871,1759206632665,-1603.22340432,0.0001726,2]
[388488873,1759206632675,-158.57943722,0.00017272,2]
[388488875,1759206632690,-9.42056278,0.00017272,2]
[388488877,1759206632699,-500.0,0.00017302,2]
[388488879,1759206632710,-500.0,0.00017302,2]
[388488882,1759206632720,-500.0,0.00017302,2]
[388488884,1759206632729,-500.0,0.00017302,2]
[388488886,1759206632739,-500.0,0.00017302,2]
[388488888,1759206632748,-500.0,0.00017302,2]
[388488890,1759206632757,-500.0,0.00017302,2]
[388488892,1759206632767,-500.0,0.00017302,2]
[388488894,1759206632777,-500.0,0.00017302,2]
[388488896,1759206632786,-500.0,0.00017302,2]
[388488898,1759206632795,-500.0,0.00017302,2]
[388488900,1759206632805,-500.0,0.00017302,2]
[388488902,1759206632814,-500.0,0.00017302,2]
[388488904,1759206632823,-500.0,0.00017302,2]
[388488906,1759206632833,-500.0,0.00017302,2]
[388488908,1759206632842,-500.0,0.00017302,2]
[388488910,1759206632853,-500.0,0.00017302,2]
[388488912,1759206632863,-500.0,0.00017302,2]
[388488914,1759206632873,-500.0,0.00017302,2]
[388488917,1759206632883,-500.0,0.00017302,2]
[388488919,1759206632892,-500.0,0.00017302,2]
[388488921,1759206632902,-500.0,0.00017302,2]
[388488923,1759206632911,-500.0,0.00017302,2]
[388488925,1759206632920,-500.0,0.00017302,2]
[388488927,1759206632930,-500.0,0.00017302,2]
[388488929,1759206632939,-500.0,0.00017302,2]
[388488931,1759206632948,-500.0,0.00017302,2]
[388488933,1759206632957,-500.0,0.00017302,2]
[388488935,1759206632967,-56.8008428,0.00017302,2]
[388488937,1759206632979,-443.1991572,0.00017302,2]
[388488939,1759206632988,-500.0,0.00017302,2]
[388488941,1759206632998,-500.0,0.00017302,2]
[388488943,1759206633007,-500.0,0.00017302,2]
[388488945,1759206633016,-500.0,0.00017302,2]
[388488947,1759206633026,-500.0,0.00017302,2]
[388488949,1759206633035,-500.0,0.00017302,2]
[388488951,1759206633044,-500.0,0.00017302,2]
[388488953,1759206633054,-498.13194898,0.00017302,2]
[388488955,1759206633063,-500.0,0.00017302,2]
[388488957,1759206633073,-500.0,0.00017302,2]
[388488959,1759206633083,-500.0,0.00017303,2]
[388488962,1759206633092,-500.0,0.00017303,2]
[388488964,1759206633101,-500.0,0.00017303,2]
[388488966,1759206633110,-500.0,0.00017303,2]
[388488968,1759206633119,-500.0,0.00017303,2]
[388488970,1759206633128,-500.0,0.00017303,2]
[388488972,1759206633137,-500.0,0.00017303,2]
[388488974,1759206633147,-200.0,0.00017303,2]
[388488976,1759206633156,-500.0,0.00017303,2]
[388488978,1759206633165,-500.0,0.00017303,2]
[388488980,1759206633174,-50.61614287,0.00017303,2]
[388488982,1759206633186,-100.38385713,0.00017303,2]
[388488984,1759206633196,-432.25676342,0.00017303,2]
[388488986,1759206633205,-151.0,0.00017303,2]
[388488988,1759206633216,-151.0,0.00017303,2]
[388488990,1759206633225,-500.0,0.00017303,2]
[388488992,1759206633235,-246.39686825,0.00017303,2]
[388488993,1759206633247,-578.70671816,0.00017303,2]
[388488994,1759206633263,-500.0,0.00017303,2]
[388488995,1759206633272,-282.59307574,0.00017303,2]
[388488996,1759206633284,-217.40692426,0.00017303,2]
[388488997,1759206633295,-117.27752369,0.00017303,2]
[388489038,1759206637929,-382.72247631,0.00017303,2]
[388489039,1759206637940,-119.77490941,0.00017303,2]
[388489040,1759206637986,-380.22509059,0.00017303,2]
[388489041,1759206637996,-500.0,0.00017303,2]